lending/lending_fUSD_20250913
["ID","MTS","AMOUNT","RATE_DAILY","PERIOD"]
[385289426,1757749852710,-400.0,0.00031852,2]
[385289427,1757749852719,-400.0,0.00031852,2]
[385289428,1757749852729,-400.0,0.00031852,2]
[385289429,1757749852738,-733.19,0.00031852,2]
[385289430,1757749852747,-400.0,0.00031852,2]
[385289431,1757749852756,-400.0,0.00031852,2]
[385289432,1757749852766,-698.51,0.00031852,2]
[385289433,1757749852775,-400.0,0.00031852,2]
[385289434,1757749852784,-400.0,0.00031852,2]
[385289435,1757749852794,-400.0,0.00031852,2]
[385289436,1757749852803,-400.0,0.00031852,2]
[385289437,1757749852812,-490.11,0.00031852,2]
[385289438,1757749852822,-400.0,0.00031852,2]
[385289439,1757749852832,-574.14,0.00031852,2]
[385289440,1757749852842,-400.0,0.00031852,2]
[385289441,1757749852852,-530.85,0.00031852,2]
[385289442,1757749852861,-1000.0,0.00031852,2]
[385289443,1757749852871,-400.0,0.00031852,2]
[385289444,1757749852881,-400.0,0.00031852,2]
[385289445,1757749852890,-400.0,0.00031852,2]
[385289446,1757749852900,-400.0,0.00031852,2]
[385289447,1757749852909,-400.0,0.00031852,2]
[385289448,1757749852918,-508.34,0.00031852,2]
[385289449,1757749852927,-777.14,0.00031852,2]
[385289450,1757749852937,-400.0,0.00031852,2]
[385289451,1757749852946,-400.0,0.00031852,2]
[385289452,1757749852956,-400.0,0.00031852,2]
[385289453,1757749853147,-400.0,0.00031852,2]
[385289454,1757749853157,-400.0,0.00031852,2]
[385289455,1757749853167,-400.0,0.00031852,2]
[385289456,1757749853176,-400.0,0.00031852,2]
[385289457,1757749853185,-400.0,0.00031852,2]
[385289458,1757749853194,-490.42,0.00031852,2]
[385289459,1757749853205,-400.0,0.00031852,2]
[385289460,1757749853215,-767.45,0.00031852,2]
[385289461,1757749853223,-400.0,0.00031852,2]
[385289462,1757749853236,-459.3,0.00031852,2]
[385289463,1757749853246,-400.0,0.00031852,2]
[385289464,1757749853255,-485.21,0.00031852,2]
[385289465,1757749853264,-745.88,0.00031852,2]
[385289466,1757749853274,-400.0,0.00031852,2]
[385289467,1757749853284,-663.72,0.00031852,2]
[385289468,1757749853293,-400.85,0.00031852,2]
[385289469,1757749853302,-733.41,0.00031852,2]
[385289470,1757749853311,-435.36,0.00031852,2]
[385289471,1757749853321,-400.0,0.00031852,2]
[385289472,1757749853330,-400.0,0.00031852,2]
[385289473,1757749853339,-840.15,0.00031852,2]
[385289474,1757749853348,-400.0,0.00031852,2]
[385289475,1757749853357,-400.0,0.00031852,2]
[385289476,1757749853367,-400.0,0.00031852,2]
[385289477,1757749853376,-649.23,0.00031852,2]
[385289478,1757749853385,-401.2594615,0.00031852,2]
[385289479,1757749853397,-939.11,0.00031852,2]
[385289480,1757749853407,-400.0,0.00031852,2]
[385289481,1757749853417,-400.0,0.00031852,2]
[385289482,1757749853425,-612.94,0.00031852,2]
[385289483,1757749853435,-400.0,0.00031852,2]
[385289484,1757749853444,-400.0,0.00031852,2]
[385289485,1757749853453,-400.0,0.00031852,2]
[385289486,1757749853462,-400.0,0.00031852,2]
[385289487,1757749853473,-591.11,0.00031852,2]
[385289488,1757749853482,-400.0,0.00031852,2]
[385289489,1757749853492,-400.0,0.00031852,2]
[385289490,1757749853502,-729.94,0.00031852,2]
[385289491,1757749853513,-400.0,0.00031852,2]
[385289492,1757749853522,-400.0,0.00031852,2]
[385289493,1757749853532,-400.0,0.00031852,2]
[385289494,1757749853543,-400.0,0.00031852,2]
[385289495,1757749853554,-400.0,0.00031852,2]
[385289496,1757749853563,-400.0,0.00031852,2]
[385289497,1757749853572,-1160.87,0.00031852,2]
[385289498,1757749853582,-400.0,0.00031852,2]
[385289499,1757749853591,-650.1,0.00031852,2]
[385289500,1757749853600,-688.61,0.00031852,2]
[385289501,1757749853610,-400.0,0.00031852,2]
[385289502,1757749853619,-400.0,0.00031852,2]
[385289503,1757749853628,-664.71,0.00031852,2]
[385289504,1757749853638,-400.0,0.00031852,2]
[385289505,1757749853647,-522.31,0.00031852,2]
[385289506,1757749853658,-400.0,0.00031852,2]
[385289507,1757749853667,-400.0,0.00031852,2]
[385289508,1757749853676,-400.0,0.00031852,2]
[385289509,1757749853686,-400.0,0.00031852,2]
[385289510,1757749853695,-400.0,0.00031852,2]
[385289511,1757749853704,-400.0,0.00031852,2]
[385289512,1757749853713,-400.0,0.00031852,2]
[385289513,1757749853722,-405.75,0.00031852,2]
[385289514,1757749853731,-400.0,0.00031852,2]
[385289515,1757749853740,-400.0,0.00031852,2]
[385289516,1757749853749,-400.0,0.00031852,2]
[385289517,1757749853759,-400.0,0.00031852,2]
[385289518,1757749853768,-747.57,0.00031852,2]
[385289519,1757749853777,-400.0,0.00031852,2]
[385289520,1757749853786,-400.0,0.00031852,2]
[385289521,1757749853795,-400.0,0.00031852,2]
[385289522,1757749853805,-400.0,0.00031852,2]
[385289523,1757749853815,-400.0,0.00031852,2]
[385289524,1757749853825,-776.31,0.00031852,2]
[385289525,1757749853835,-723.98,0.00031852,2]
[385289526,1757749853845,-400.0,0.00031852,2]
[385289527,1757749853854,-400.0,0.00031852,2]
[385289528,1757749853864,-400.0,0.00031852,2]
[385289529,1757749853873,-400.0,0.00031852,2]
[385289530,1757749853883,-400.0,0.00031852,2]
[385289531,1757749853891,-400.0,0.00031852,2]
[385289532,1757749853901,-400.0,0.00031852,2]
[385289533,1757749853910,-400.0,0.00031852,2]
[385289534,1757749853921,-402.22544529,0.00031852,2]
[385289535,1757749853930,-827.2,0.00031852,2]
[385289536,1757749853940,-400.0,0.00031852,2]
[385289537,1757749853950,-400.0,0.00031852,2]
[385289538,1757749853961,-604.68,0.00031852,2]
[385289539,1757749853970,-681.63,0.00031852,2]
[385289540,1757749853980,-535.30212353,0.00031852,2]
[385289541,1757749853989,-400.0,0.00031852,2]
[385289542,1757749853998,-786.55,0.00031852,2]
[385289543,1757749854007,-400.0,0.00031852,2]
[385289544,1757749854016,-815.29,0.00031852,2]
[385289545,1757749854025,-632.77,0.00031852,2]
[385289546,1757749854034,-714.0,0.00031852,2]
[385289547,1757749854044,-515.76,0.00031852,2]
[385289548,1757749854053,-482.52,0.00031852,2]
[385289549,1757749854062,-645.82,0.00031852,2]
[385289550,1757749854072,-400.0,0.00031852,2]
[385289551,1757749854081,-812.6,0.00031852,2]
[385289552,1757749854090,-696.33,0.00031852,2]
[385289553,1757749854099,-400.0,0.00031852,2]
[385289554,1757749854108,-400.0,0.00031852,2]
[385289555,1757749854119,-400.0,0.00031852,2]
[385289556,1757749854130,-479.68,0.00031852,2]
[385289557,1757749854140,-400.0,0.00031852,2]
[385289558,1757749854149,-442.87,0.00031852,2]
[385289559,1757749854159,-491.71,0.00031852,2]
[385289560,1757749854168,-595.94,0.00031852,2]
[385289561,1757749854179,-400.0,0.00031852,2]
[385289562,1757749854189,-400.0,0.00031852,2]
[385289563,1757749854198,-400.0,0.00031852,2]
[385289564,1757749854208,-745.89,0.00031853,2]
[385289565,1757749854217,-500.0,0.00031853,2]
[385289566,1757749854227,-500.0,0.00031853,2]
[385289567,1757749854236,-500.0,0.00031853,2]
[385289568,1757749854245,-500.0,0.00031853,2]
[385289569,1757749854255,-500.0,0.00031853,2]
[385289570,1757749854264,-500.0,0.00031853,2]
[385289571,1757749854274,-500.0,0.00031853,2]
[385289572,1757749854284,-500.0,0.00031853,2]
[385289573,1757749854293,-677.82,0.00031853,2]
[385289574,1757749854303,-500.0,0.00031853,2]
[385289575,1757749854312,-799.37,0.00031853,2]
[385289576,1757749854322,-560.72,0.00031853,2]
[385289577,1757749854331,-730.65,0.00031853,2]
[385289578,1757749854340,-1330.3,0.00031853,2]
[385289579,1757749854349,-581.85,0.00031853,2]
[385289580,1757749854359,-603.3,0.00031853,2]
[385289581,1757749854368,-400.0,0.00031853,2]
[385289582,1757749854378,-500.0,0.00031853,2]
[385289583,1757749854387,-705.02,0.00031853,2]
[385289584,1757749854399,-705.02,0.00031853,2]
[385289585,1757749854408,-752.86,0.00031853,2]
[385289586,1757749854418,-642.5,0.00031853,2]
[385289587,1757749854427,-157.0,0.00031854,5]
[385289588,1757749854438,-280.54343816,0.00031854,15]
[385289589,1757749854448,-400.0,0.00031854,2]
[385289590,1757749854458,-400.0,0.00031854,2]
[385289591,1757749854469,-400.0,0.00031854,2]
[385289592,1757749854479,-220.93851455,0.00031854,2]
[385289593,1757749854490,-400.0,0.00031854,2]
[385289594,1757749854499,-400.0,0.00031854,2]
[385289595,1757749854509,-381.77186391,0.00031854,2]
[385289596,1757749854518,-400.0,0.00031854,2]
[385289597,1757749854528,-400.0,0.00031854,2]
[385289598,1757749854539,-400.0,0.00031854,2]
[385289599,1757749854549,-400.0,0.00031854,2]
[385289600,1757749854559,-400.0,0.00031854,2]
[385289601,1757749854568,-400.0,0.00031854,2]
[385289602,1757749854577,-400.0,0.00031854,2]
[385289603,1757749854587,-400.0,0.00031854,2]
[385289604,1757749854596,-400.0,0.00031854,2]
[385289605,1757749854606,-300.0,0.00031854,2]
[385289606,1757749854615,-400.0,0.00031854,2]
[385289607,1757749854625,-400.0,0.00031854,2]
[385289608,1757749854634,-400.0,0.00031854,2]
[385289609,1757749854644,-400.0,0.00031854,2]
[385289610,1757749854653,-400.0,0.00031854,2]
[385289611,1757749854663,-400.0,0.00031854,2]
[385289612,1757749854672,-400.0,0.00031854,2]
[385289613,1757749854682,-404.25699885,0.00031854,2]
[385289614,1757749854692,-400.43496923,0.00031854,2]
[385289615,1757749854701,-745.89,0.00031854,2]
[385289616,1757749854710,-400.0,0.00031854,2]
[385289617,1757749854720,-400.44288407,0.00031854,2]
[385289618,1757749854730,-400.0,0.00031854,2]
[385289619,1757749854739,-400.0,0.00031854,2]
[385289620,1757749854749,-400.0,0.00031854,2]
[385289621,1757749854758,-400.0,0.00031854,2]
[385289622,1757749854768,-418.51677627,0.00031854,2]
[385289623,1757749854777,-402.62308896,0.00031854,2]
[385289624,1757749854787,-400.0,0.00031854,2]
[385289625,1757749854796,-400.0,0.00031854,2]
[385289626,1757749854806,-400.0,0.00031854,2]
[385289627,1757749854815,-309.46933095,0.00031854,2]
[385289628,1757749854824,-400.0,0.00031854,2]
[385289629,1757749854833,-400.0,0.00031854,2]
[385289630,1757749854845,-400.0,0.00031854,2]
[385289631,1757749854854,-519.06982581,0.00031854,2]
[385289632,1757749854865,-400.0,0.00031854,2]
[385289633,1757749854874,-400.0,0.00031854,2]
[385289634,1757749854883,-317.41989434,0.00031854,2]
[385289635,1757749854892,-402.55194903,0.00031854,2]
[385289636,1757749854901,-400.0,0.00031854,2]
[385289637,1757749854910,-400.0,0.00031854,2]
[385289638,1757749854919,-400.0,0.00031854,2]
[385289639,1757749854928,-400.0,0.00031854,2]
[385289640,1757749854937,-400.0,0.00031854,2]
[385289641,1757749854946,-400.0,0.00031854,2]
[385289642,1757749854954,-500.0,0.00031854,2]
[385289643,1757749854964,-400.0,0.00031854,2]
[385289644,1757749854973,-400.0,0.00031854,2]
[385289645,1757749854982,-400.0,0.00031854,2]
[385289646,1757749854992,-400.0,0.00031854,2]
[385289647,1757749855001,-400.0,0.00031854,2]
[385289648,1757749855010,-400.0,0.00031854,2]
[385289649,1757749855019,-500.0,0.00031854,15]
[385289650,1757749855029,-400.0,0.00031854,2]
[385289651,1757749855038,-400.0,0.00031854,2]
[385289652,1757749855048,-400.0,0.00031854,2]
[385289653,1757749855057,-400.0,0.00031854,2]
[385289654,1757749855066,-400.0,0.00031854,2]
[385289655,1757749855075,-400.0,0.00031854,2]
[385289656,1757749855085,-400.0,0.00031854,2]
[385289657,1757749855094,-400.0,0.00031854,2]
[385289658,1757749855103,-400.0,0.00031854,2]
[385289659,1757749855112,-500.0,0.00031854,2]
[385289660,1757749855120,-400.96241772,0.00031854,2]
[385289661,1757749855130,-400.0,0.00031854,2]
[385289662,1757749855139,-400.0,0.00031854,2]
[385289663,1757749855148,-500.0,0.00031854,2]
[385289664,1757749855157,-403.73796265,0.00031854,2]
[385289665,1757749855166,-400.0,0.00031854,2]
[385289666,1757749855176,-400.0,0.00031854,2]
[385289667,1757749855185,-401.68176237,0.00031854,2]
[385289668,1757749855195,-400.0,0.00031854,2]
[385289669,1757749855204,-400.0,0.00031854,2]
[385289670,1757749855213,-400.0,0.00031854,2]
[385289671,1757749855224,-486.32,0.00031854,2]
[385289672,1757749855234,-735.34,0.00031854,2]
[385289673,1757749855243,-500.0,0.00031854,2]
[385289674,1757749855253,-677.27,0.00031854,2]
[385289675,1757749855263,-586.57,0.00031854,2]
[385289676,1757749855272,-500.0,0.00031854,2]
[385289677,1757749855281,-895.79,0.00031854,2]
[385289678,1757749855290,-587.54,0.00031854,2]
[385289679,1757749855299,-400.0,0.00031854,2]
[385289680,1757749855309,-400.0,0.00031854,2]
[385289681,1757749855320,-632.04,0.00031854,2]
[385289682,1757749855329,-522.88,0.00031854,2]
[385289683,1757749855338,-400.0,0.00031854,2]
[385289684,1757749855347,-500.0,0.00031854,2]
[385289685,1757749855357,-400.0,0.00031854,2]
[385289686,1757749855366,-300.0,0.00031854,2]
[385289687,1757749855375,-472.18,0.00031854,2]
[385289688,1757749855384,-400.0,0.00031854,2]
[385289689,1757749855397,-672.93,0.00031854,2]
[385289690,1757749855407,-777.15,0.00031854,2]
[385289691,1757749855416,-400.0,0.00031854,2]
[385289692,1757749855426,-485.26,0.00031854,2]
[385289693,1757749855435,-672.75,0.00031854,2]
[385289694,1757749855445,-798.51,0.00031854,2]
[385289695,1757749855455,-1019.32,0.00031854,2]
[385289696,1757749855466,-734.53,0.00031854,2]
[385289697,1757749855475,-371.52600817,0.00031854,2]
[385289698,1757749855485,-400.0,0.00031854,2]
[385289699,1757749855495,-400.0,0.00031854,2]
[385289700,1757749855504,-634.59,0.00031854,2]
[385289701,1757749855513,-755.88,0.00031854,2]
[385289702,1757749855522,-400.0,0.00031854,2]
[385289703,1757749855532,-581.95,0.00031854,2]
[385289704,1757749855540,-624.99,0.00031854,2]
[385289705,1757749855550,-643.29,0.00031854,2]
[385289706,1757749855559,-419.45,0.00031854,2]
[385289707,1757749855568,-464.87,0.00031854,2]
[385289708,1757749855577,-400.0,0.00031854,2]
[385289709,1757749855586,-400.0,0.00031854,2]
[385289710,1757749855596,-719.23,0.00031854,2]
[385289711,1757749855605,-891.83,0.00031854,2]
[385289712,1757749855615,-400.0,0.00031854,2]
[385289713,1757749855793,-620.13,0.00031854,2]
[385289714,1757749855803,-652.77,0.00031854,2]
[385289715,1757749855812,-400.0,0.00031854,2]
[385289716,1757749855821,-400.0,0.00031854,2]
[385289717,1757749855830,-677.82,0.00031854,2]
[385289718,1757749855839,-500.0,0.00031854,2]
[385289719,1757749855848,-500.0,0.00031854,2]
[385289720,1757749855857,-400.0,0.00031854,2]
[385289721,1757749855866,-770.07,0.00031854,2]
[385289722,1757749855875,-730.28,0.00031854,2]
[385289723,1757749855884,-400.0,0.00031854,2]
[385289724,1757749855893,-400.0,0.00031854,2]
[385289725,1757749855903,-400.0,0.00031854,2]
[385289726,1757749855912,-760.03,0.00031854,2]
[385289727,1757749855921,-619.51,0.00031854,2]
[385289728,1757749855930,-1088.41,0.00031854,2]
[385289729,1757749855939,-764.67,0.00031854,2]
[385289730,1757749855948,-725.07,0.00031854,2]
[385289731,1757749855957,-630.37,0.00031854,2]
[385289732,1757749855966,-792.26,0.00031854,2]
[385289733,1757749855975,-400.0,0.00031854,2]
[385289734,1757749855984,-748.09,0.00031854,2]
[385289735,1757749855993,-799.37,0.00031854,2]
[385289736,1757749856002,-712.86,0.00031854,2]
[385289737,1757749856011,-500.0,0.00031854,2]
[385289738,1757749856020,-489.44,0.00031854,2]
[385289739,1757749856029,-651.77,0.00031854,2]
[385289740,1757749856038,-610.01,0.00031854,2]
[385289741,1757749856047,-605.22,0.00031854,2]
[385289742,1757749856056,-400.0,0.00031854,2]
[385289743,1757749856066,-400.0,0.00031854,2]
[385289744,1757749856075,-500.0,0.00031854,2]
[385289745,1757749856085,-577.44020762,0.00031854,2]
[385289746,1757749856094,-400.0,0.00031854,2]
[385289747,1757749856104,-704.46,0.00031854,2]
[385289748,1757749856113,-428.1,0.00031854,2]
[385289749,1757749856122,-705.84,0.00031854,2]
[385289750,1757749856132,-1309.6,0.00031854,2]
[385289751,1757749856141,-740.15,0.00031854,2]
[385289752,1757749856151,-500.0,0.00031854,2]
[385289753,1757749856161,-705.02,0.00031854,2]
[385289754,1757749856170,-1326.9,0.00031854,2]
[385289755,1757749856179,-811.25,0.00031854,2]
[385289756,1757749856188,-1068.63,0.00031854,2]
[385289757,1757749856198,-551.72,0.00031854,2]
[385289758,1757749856207,-400.0,0.00031854,2]
[385289759,1757749856216,-796.7,0.00031854,2]
[385289760,1757749856226,-2899.81,0.00031854,2]
[385289761,1757749856237,-500.0,0.00031854,2]
[385289762,1757749856248,-500.0,0.00031854,2]
[385289763,1757749856257,-747.88,0.00031854,2]
[385289764,1757749856267,-1727.68,0.00031854,2]
[385289765,1757749856276,-400.0,0.00031854,2]
[385289766,1757749856286,-930.47,0.00031854,2]
[385289767,1757749856295,-997.9,0.00031854,2]
[385289768,1757749856304,-400.0,0.00031854,2]
[385289769,1757749856313,-677.45,0.00031854,2]
[385289770,1757749856322,-2568.06,0.00031854,2]
[385289771,1757749856333,-733.35,0.00031854,2]
[385289772,1757749856342,-400.0,0.00031854,2]
[385289773,1757749856351,-714.82,0.00031854,2]
[385289774,1757749856360,-578.46,0.00031854,2]
[385289775,1757749856369,-400.0,0.00031854,2]
[385289776,1757749856378,-5058.68608604,0.00031854,2]
[385289777,1757749856387,-196778.00743128,0.00031855,2]
[385289778,1757749856400,-400.0,0.00031855,2]
[385289779,1757749856410,-400.0,0.00031855,2]
[385289780,1757749856420,-400.0,0.00031855,2]
[385289781,1757749856429,-400.0,0.00031855,2]
[385289782,1757749856439,-745.89,0.00031855,2]
[385289783,1757749856450,-400.0,0.00031855,2]
[385289784,1757749856459,-400.0,0.00031855,2]
[385289785,1757749856468,-506.4,0.00031855,2]
[385289786,1757749856478,-400.0,0.00031855,2]
[385289787,1757749856488,-400.0,0.00031855,2]
[385289788,1757749856497,-400.0,0.00031855,2]
[385289789,1757749856506,-400.0,0.00031855,2]
[385289790,1757749856516,-750.76,0.00031855,2]
[385289791,1757749856527,-400.0,0.00031855,2]
[385289792,1757749856538,-500.0,0.00031855,2]
[385289793,1757749856547,-500.0,0.00031855,2]
[385289794,1757749856558,-400.0,0.00031855,2]
[385289795,1757749856567,-400.0,0.00031855,2]
[385289796,1757749856576,-400.0,0.00031855,2]
[385289797,1757749856585,-400.0,0.00031855,2]
[385289798,1757749856594,-413.07,0.00031855,2]
[385289799,1757749856603,-1273.82,0.00031855,2]
[385289800,1757749856612,-400.0,0.00031855,2]
[385289801,1757749856621,-501.88117775,0.00031855,2]
[385289802,1757749856630,-400.0,0.00031855,2]
[385289803,1757749856639,-400.0,0.00031855,2]
[385289804,1757749856648,-400.0,0.00031855,2]
[385289805,1757749856657,-400.0,0.00031855,2]
[385289806,1757749856667,-400.0,0.00031855,2]
[385289807,1757749856676,-400.0,0.00031855,2]
[385289808,1757749856686,-400.0,0.00031855,2]
[385289809,1757749856695,-400.0,0.00031855,2]
[385289810,1757749856705,-500.0,0.00031855,2]
[385289811,1757749856714,-500.0,0.00031855,2]
[385289812,1757749856723,-400.0,0.00031855,2]
[385289813,1757749856732,-400.0,0.00031855,2]
[385289814,1757749856742,-400.0,0.00031855,2]
[385289815,1757749856751,-400.0,0.00031855,2]
[385289816,1757749856760,-400.0,0.00031855,2]
[385289817,1757749856769,-400.0,0.00031855,2]
[385289818,1757749856779,-400.0,0.00031855,2]
[385289819,1757749856787,-400.0,0.00031855,2]
[385289820,1757749856797,-400.0,0.00031855,2]
[385289821,1757749856806,-400.0,0.00031855,2]
[385289822,1757749856815,-400.0,0.00031855,2]
[385289823,1757749856824,-463.47,0.00031855,2]
[385289824,1757749856834,-400.0,0.00031855,2]
[385289825,1757749856843,-400.0,0.00031855,2]
[385289826,1757749856852,-423.09,0.00031855,2]
[385289827,1757749856861,-400.0,0.00031855,2]
[385289828,1757749856870,-400.0,0.00031855,2]
[385289829,1757749856879,-325.54487246,0.00031855,2]
[385289830,1757749856888,-400.0,0.00031855,2]
[385289831,1757749856898,-400.0,0.00031855,2]
[385289832,1757749856907,-527.66,0.00031855,2]
[385289833,1757749856919,-400.0,0.00031855,2]
[385289834,1757749856940,-400.0,0.00031855,2]
[385289835,1757749856956,-714.44,0.00031855,2]
[385289836,1757749856974,-400.0,0.00031855,2]
[385289837,1757749856991,-524.53,0.00031855,2]
[385289838,1757749857005,-400.0,0.00031855,2]
[385289839,1757749857024,-400.0,0.00031855,2]
[385289840,1757749857043,-400.0,0.00031855,2]
[385289841,1757749857061,-400.0,0.00031855,2]
[385289842,1757749857078,-400.0,0.00031855,2]
[385289843,1757749857096,-400.0,0.00031855,2]
[385289844,1757749857114,-400.0,0.00031855,2]
[385289845,1757749857129,-400.0,0.00031855,2]
[385289846,1757749857145,-435.15,0.00031855,2]
[385289847,1757749857162,-400.0,0.00031855,2]
[385289848,1757749857178,-400.0,0.00031855,2]
[385289849,1757749857193,-400.0,0.00031855,2]
[385289850,1757749857207,-400.0,0.00031855,2]
[385289851,1757749857222,-504.77284232,0.00031855,2]
[385289852,1757749857236,-400.0,0.00031855,2]
[385289853,1757749857251,-400.0,0.00031855,2]
[385289854,1757749857265,-400.0,0.00031855,2]
[385289855,1757749857279,-400.0,0.00031855,2]
[385289856,1757749857294,-400.0,0.00031855,2]
[385289857,1757749857308,-400.0,0.00031855,2]
[385289858,1757749857323,-400.0,0.00031855,2]
[385289859,1757749857338,-400.0,0.00031855,2]
[385289860,1757749857352,-400.0,0.00031855,2]
[385289861,1757749857367,-400.0,0.00031855,2]
[385289862,1757749857382,-400.0,0.00031855,2]
[385289863,1757749857398,-400.0,0.00031855,2]
[385289864,1757749857418,-736.78,0.00031855,2]
[385289865,1757749857434,-400.0,0.00031855,2]
[385289866,1757749857449,-400.0,0.00031855,2]
[385289867,1757749857464,-400.0,0.00031855,2]
[385289868,1757749857486,-400.0,0.00031855,2]
[385289869,1757749857501,-400.0,0.00031855,2]
[385289870,1757749857517,-400.0,0.00031855,2]
[385289871,1757749857533,-400.0,0.00031855,2]
[385289872,1757749857549,-400.0,0.00031855,2]
[385289873,1757749857573,-400.0,0.00031855,2]
[385289874,1757749857590,-400.0,0.00031855,2]
[385289875,1757749857605,-400.0,0.00031855,2]
[385289876,1757749857620,-400.0,0.00031855,2]
[385289877,1757749857634,-400.0,0.00031855,2]
[385289878,1757749857650,-400.0,0.00031855,2]
[385289879,1757749857664,-400.0,0.00031855,2]
[385289880,1757749857678,-424.96,0.00031855,2]
[385289881,1757749857692,-400.0,0.00031855,2]
[385289882,1757749857707,-740.09,0.00031855,2]
[385289883,1757749857722,-300.0,0.00031855,2]
[385289884,1757749857737,-400.0,0.00031855,2]
[385289885,1757749857752,-400.0,0.00031855,2]
[385289886,1757749857766,-400.0,0.00031855,2]
[385289887,1757749857781,-927.99,0.00031855,2]
[385289888,1757749857797,-410.9,0.00031855,2]
[385289889,1757749857812,-500.0,0.00031855,2]
[385289890,1757749857826,-500.0,0.00031855,2]
[385289891,1757749857842,-500.0,0.00031855,2]
[385289892,1757749857856,-400.0,0.00031855,2]
[385289893,1757749857870,-400.0,0.00031855,2]
[385289894,1757749857885,-400.0,0.00031855,2]
[385289895,1757749857899,-400.0,0.00031855,2]
[385289896,1757749857913,-400.0,0.00031855,2]
[385289897,1757749857927,-400.0,0.00031855,2]
[385289898,1757749857941,-422.36,0.00031855,2]
[385289899,1757749857956,-400.0,0.00031855,2]
[385289900,1757749857971,-400.0,0.00031855,2]
[385289901,1757749857985,-400.0,0.00031855,2]
[385289902,1757749858000,-400.0,0.00031855,2]
[385289903,1757749858013,-400.0,0.00031855,2]
[385289904,1757749858027,-400.0,0.00031855,2]
[385289905,1757749858043,-273.9378118,0.00031855,2]
[385289906,1757749858057,-400.0,0.00031855,2]
[385289907,1757749858071,-400.0,0.00031855,2]
[385289908,1757749858085,-400.0,0.00031855,2]
[385289909,1757749858100,-569.87,0.00031855,2]
[385289910,1757749858114,-400.0,0.00031855,2]
[385289911,1757749858129,-400.0,0.00031855,2]
[385289912,1757749858144,-400.0,0.00031855,2]
[385289913,1757749858158,-400.0,0.00031855,2]
[385289914,1757749858172,-400.0,0.00031855,2]
[385289915,1757749858187,-400.0,0.00031855,2]
[385289916,1757749858201,-400.0,0.00031855,2]
[385289917,1757749858215,-660.9,0.00031855,2]
[385289918,1757749858229,-400.0,0.00031855,2]
[385289919,1757749858243,-402.62689451,0.00031855,2]
[385289920,1757749858258,-500.0,0.00031855,2]
[385289921,1757749858272,-500.0,0.00031855,2]
[385289922,1757749858287,-652.69,0.00031855,2]
[385289923,1757749858301,-400.0,0.00031855,2]
[385289924,1757749858315,-407.13,0.00031855,2]
[385289925,1757749858329,-400.0,0.00031855,2]